[Event "Romanian Team Rapid Women 2022"]
[Site "Sebes"]
[Date "2022.12.03"]
[Round "6.1"]
[White "Bulmaga, Irina"]
[Black "Voicu-Jagodzinsky, Carmen"]
[Result "1-0"]
[ECO "B30"]
[WhiteElo "2426"]
[BlackElo "2300"]
[Annotator "TA"]
[PlyCount "65"]
[EventDate "2022.12.03"]
[EventType "rapid"]
[EventCountry "ROU"]
[SourceTitle "playchess.com"]
[Source "ChessBase"]
[SourceQuality "1"]
[TimeControl "900+10"]

{[%evp 14,65,12,10,4,9,21,21,18,-28,-28,-19,-26,-22,-16,-51,-44,-33,14,8,254,232,278,257,402,403,559,554,666,641,660,665,639,617,790,788,885,874,885,873,925,922,920,920,909,913,1794,1016,29978,29979,29990,29990,29990,29990]} 1. e4 {[%emt 0:00:01]} c5 {[%emt 0:00:01]} 2. Nf3 {[%emt 0:00:04]} Nc6 {[%emt 0:00:01]} 3. Nc3 {[%emt 0:00:03]} e5 {[%emt 0:00:13]} 4. Bc4 {[%emt 0:00:03]} Be7 {[%emt 0:00:01]} 5. d3 {[%emt 0:00:07]} d6 {[%emt 0:00:02]} 6. O-O {[%emt 0:00:06]} Nf6 {[%emt 0:00:02]} 7. Ng5 {[%emt 0:00:03]} O-O {[%emt 0:00:02]} 8. f4 {[%emt 0:00:02]} (8. Nf3 {simplifies} Na5 9. a4 Nxc4 10. dxc4 Ne8 11. b3) 8... Bg4 {[%emt 0:00:28] B30: Sicilian: 2...Nc6 3 Bb5, lines without ...g6.} 9. Qe1 {[%emt 0:00:12]} exf4 {[%emt 0:00:44]} 10. Bxf4 {[%emt 0:01:46][%cal Bc1f4,Bf4e5,Be5c3][%mdl 32]} (10. Rxf4 h6 11. Nh3 Nd4 $15) 10... Nd4 {[%emt 0:00:25] The position is equal.} 11. Qh4 {[%emt 0:01:07]} (11. Qd2 {was preferrable.}) 11... h6 $11 {[%emt 0:05:09]} 12. Nxf7 {[%emt 0:00:11]} Rxf7 {[%emt 0:00:03]} 13. Bxf7+ {[%emt 0:00:03]} Kxf7 {[%emt 0:00:01]} 14. e5 {[%emt 0:05:09]} (14. Bxh6 {with more complications.} Be6 15. Qh5+ Kg8 16. Qg6) 14... dxe5 {[%emt 0:03:53]} 15. Bxe5 {[%emt 0:00:34] [#]} Nf5 $146 {[%emt 0:03:06]} (15... Bf5 $15 {feels stronger.}) ({Predecessor:} 15... Bf5 16. Bxd4 Qxd4+ 17. Qxd4 cxd4 18. Rxf5 dxc3 19. bxc3 Rc8 20. c4 Kg6 21. Raf1 Bc5+ {0-1 (56) Smirnov,A (2354)-Yevseev,D (2535) Voronezh 2014}) 16. Qf2 $36 {[%emt 0:00:11][%mdl 3072] [#] And now h3 would win. White has compensation. White has some pressure.} g6 $2 {[%emt 0:00:33] This costs Black the game.} (16... Nd4 $1 $11 {and Black is okay.}) 17. h3 {[%emt 0:00:33]} Bh5 {[%emt 0:00:21]} 18. Ne4 {[%emt 0:00:30]} (18. g4 Bxg4 19. hxg4 Nxg4 $14) 18... Nd7 {[%emt 0:00:14]} (18... c4 {is a better defense.} 19. Bxf6 (19. g4 Bxg4 20. hxg4 Nxg4 $16) 19... Bxf6 20. Nxf6 (20. dxc4 $2 {is the wrong capture.} Bd4 $19) 20... Qxf6) 19. Bc3 $18 {[%emt 0:00:35] The board is on fire.} c4 {[%emt 0:02:21]} 20. g4 {[%emt 0:00:34][%mdl 64] [#] Pin, Double Attack} Bh4 {[%emt 0:00:19]} 21. Qf3 {[%emt 0:00:29][%mdl 64] Pin} Qb6+ {[%emt 0:00:01]} 22. Kh1 {[%emt 0:00:05]} Kg8 {[%emt 0:00:29]} 23. gxh5 {[%emt 0:00:25]} Rf8 {[%emt 0:00:00]} 24. Qg4 {[%emt 0:00:18][%cal Of1f5] Rxf5! is the strong threat.} ({Less strong is} 24. dxc4 Ng3+ 25. Nxg3 Rxf3 26. Rxf3 Qc6 $16) 24... Bg5 {[%emt 0:00:22]} 25. hxg6 {[%emt 0:01:30]} Qxg6 {[%emt 0:00:16]} 26. Rf2 {[%emt 0:00:29]} cxd3 {[%emt 0:00:01]} 27. cxd3 {[%emt 0:00:05]} Ne3 {[%emt 0:00:07]} 28. Qxd7 {[%emt 0:00:36] Black must now prevent Rxf8+.} Rxf2 {[%emt 0:00:11]} 29. Nxf2 {[%emt 0:00:03] Hoping for Qc8+.} Nf5 {[%emt 0:00:13]} 30. Re1 {[%emt 0:00:17] Re8+ would kill now.} Ng3+ {[%emt 0:00:10]} 31. Kh2 {[%emt 0:00:27] White mates.} Be3 {[%emt 0:00:17]} 32. Qc8+ {[%emt 0:00:18]} Kf7 {[%emt 0:00:01]} 33. Qc7+ {[%emt 0:00:04] Weighted Error Value: White=0.09 (flawless) /Black=0.74} 1-0

[Event "Romanian Team Rapid Women 2022"]
[Site "Sebes"]
[Date "2022.12.03"]
[Round "6.3"]
[White "Ciolacu, Alessia-Mihaela"]
[Black "Bucur, Denisa-Andreea"]
[Result "1-0"]
[ECO "D27"]
[WhiteElo "2097"]
[BlackElo "1953"]
[Annotator "TA"]
[PlyCount "99"]
[EventDate "2022.12.03"]
[EventType "rapid"]
[EventCountry "ROU"]
[SourceTitle "playchess.com"]
[Source "ChessBase"]
[SourceQuality "1"]
[TimeControl "900+10"]

{[%evp 13,99,22,32,48,57,42,109,100,102,102,124,116,89,70,68,60,160,44,52,43,45,52,39,56,112,35,56,54,55,45,54,13,9,11,59,59,75,64,95,91,100,98,143,137,121,111,116,113,142,118,154,138,162,145,157,154,175,139,173,64,333,331,245,9,482,433,497,499,934,841,935,771,867,500,634,616,589,543,764,752,1322,1218,1733,1818,2546,2451,1907,1728]} 1. d4 {[%emt 0:00:03]} d5 {[%emt 0:00:03]} 2. c4 {[%emt 0:00:06]} dxc4 {[%emt 0:00:04]} 3. e3 {[%emt 0:00:14]} Nf6 {[%emt 0:00:07]} 4. Bxc4 {[%emt 0:00:08][%cal Bf1c4,Bc4b3,Bb3c2][%mdl 32]} e6 {[%emt 0:00:02]} 5. Nf3 {[%emt 0:00:04]} a6 {[%emt 0:00:31]} 6. O-O {[%emt 0:00:05]} Nbd7 {[%emt 0:00:03]} 7. Bb3 {[%emt 0:00:22]} c5 {[%emt 0:00:54]} 8. e4 {[%emt 0:00:15][%cal Be3e4,Be4e5][%mdl 32] D27: Queen's Gambit Accepted: Classical main line: 7 e4!? and 7 a4.} cxd4 {[%emt 0:00:38]} 9. e5 {[%emt 0:00:06]} Ne4 {[%emt 0:01:44]} (9... Ng4 $14) 10. Qxd4 $16 {[%emt 0:00:16] White is better.} (10. Nxd4 Nxe5 11. Bf4 Ng6 $15) 10... Nec5 {[%emt 0:00:51]} (10... Ndc5 $2 11. Bc2 $18) 11. Bc2 {[%emt 0:00:09] [#]} b5 $146 {[%emt 0:00:18]} ({Predecessor:} 11... Nb6 12. Qg4 Nd5 13. a3 Qc7 14. Re1 b6 15. b4 Nd7 16. Bb3 Bb7 17. Bb2 g6 {½-½ (25) Tregubov,P (2625)-Lupu,M (2428) Paris 2014}) 12. Nc3 {[%emt 0:00:14]} Nb6 {[%emt 0:01:19]} 13. Qxd8+ {[%emt 0:02:03]} Kxd8 {[%emt 0:00:02]} 14. Rd1+ {[%emt 0:00:59]} Kc7 {[%emt 0:00:11]} (14... Ke8 $14) 15. Ne4 {[%emt 0:00:44] White is much more active. The black rooks are badly placed.} ({White should try} 15. Ng5 $16 f5 16. Nf7) 15... Nxe4 $1 $14 {[%emt 0:01:38]} 16. Bxe4 {[%emt 0:00:02]} Bb7 {[%emt 0:00:02]} 17. Bxb7 {[%emt 0:00:14]} Kxb7 {[%emt 0:00:03]} 18. Ng5 {[%emt 0:00:05]} Bc5 {[%emt 0:00:25] [#]} (18... Be7 $14) 19. Nxf7 {[%emt 0:00:15]} (19. Be3 $1 $16 {[%cal Re3c5]} Bxe3 20. fxe3) 19... Rhf8 {[%emt 0:00:09]} 20. Nd6+ {[%emt 0:00:04]} Bxd6 {[%emt 0:03:09]} 21. Rxd6 {[%emt 0:00:20]} Rad8 {[%emt 0:00:09]} 22. Bg5 {[%emt 0:01:52]} (22. Rxe6 $2 Rd1#) 22... Rxd6 {[%emt 0:01:53]} 23. exd6 $11 {[%emt 0:00:01][%mdl 4096] Endgame KRB-KRN} Rf5 {[%emt 0:01:07]} (23... Kc6 $11 {is superior.}) 24. Be7 $1 $14 {[%emt 0:00:42] aiming for Rc1.} Rd5 {[%emt 0:00:13]} 25. Re1 {[%emt 0:00:58]} Nc4 {[%emt 0:01:15]} 26. h4 {[%emt 0:00:47]} (26. Rxe6 $2 Rd1+) (26. b3 {simplifies} Nxd6 27. h3 e5 28. Bxd6 Rxd6 29. Rxe5 Rd1+ 30. Kh2) 26... Nxb2 {[%emt 0:00:20]} 27. Rxe6 {[%emt 0:00:10]} Nc4 {[%emt 0:00:12]} 28. Bf8 {[%emt 0:00:07]} Kc6 {[%emt 0:01:48]} 29. d7+ {[%emt 0:01:03]} Kxd7 {[%emt 0:00:02]} 30. Rxa6 {[%emt 0:00:02]} Rd1+ {[%emt 0:00:20]} 31. Kh2 {[%emt 0:00:03]} Rd2 {[%emt 0:00:02]} 32. Ra7+ {[%emt 0:01:52]} Kc6 {[%emt 0:00:12]} 33. Bxg7 {[%emt 0:02:00]} (33. Rxg7 $6 Rxf2 34. Be7 h5 $16) 33... Rxf2 {[%emt 0:00:08]} 34. Bh6 {[%emt 0:00:04] Inhibits Ne3.} Ne5 {[%emt 0:00:29]} 35. Kh3 {[%emt 0:00:06]} (35. Rxh7 Rxa2 36. Bg7 Ng4+ 37. Kh3 Nf2+ 38. Kg3 Ne4+ 39. Kh2 b4 $16) 35... Nd3 {[%emt 0:00:23]} 36. a3 {[%emt 0:00:20]} ({Don't play} 36. Rxh7 $6 Rxa2 37. Rf7 b4 $14) (36. h5 $18) 36... Ne1 $2 {[%emt 0:00:05][%mdl 8192]} (36... Ra2 $14) 37. g3 $18 {[%emt 0:01:05]} ({Don't take} 37. Rxh7 Rxg2 38. h5 Rg1 $18) 37... Ra2 {[%emt 0:00:01]} 38. Bf8 $2 {[%emt 0:00:04]} ({Much less strong is} 38. Rxh7 Rxa3 39. h5 b4) ({Better is} 38. h5 $18) 38... Nc2 $2 {[%emt 0:00:18][%mdl 8192]} (38... Nd3 $1 $11 {and Black stays safe.}) 39. Rxh7 {[%emt 0:00:08] White is clearly winning.} Nd4 {[%emt 0:00:18]} 40. h5 {[%emt 0:00:21]} Ne6 {[%emt 0:00:05]} (40... Nf3 $142) 41. Be7 {[%emt 0:00:09]} Kd5 {[%emt 0:00:10]} 42. Kg4 {[%emt 0:00:11]} Rc2 {[%emt 0:00:07]} 43. Bb4 {[%emt 0:00:11] [#] Hoping for h6.} Rc4+ {[%emt 0:00:09]} 44. Kf5 {[%emt 0:00:22] Threatens to win with Rd7+.} Nd4+ {[%emt 0:00:02]} 45. Kf6 {[%emt 0:00:14]} Ne2 {[%emt 0:00:15]} 46. Rd7+ {[%emt 0:00:29]} Ke4 {[%emt 0:00:18]} 47. g4 {[%emt 0:00:11][%cal Bg3g4,Bg4g5][%mdl 32]} Kf4 {[%emt 0:00:13]} 48. g5 {[%emt 0:00:06]} Rc8 {[%emt 0:00:11]} 49. h6 {[%emt 0:00:10][%cal Bh5h6,Bh6h7][%mdl 32]} Ng3 {[%emt 0:00:04]} 50. h7 {[%emt 0:00:10] Weighted Error Value: White=0.38/Black=0.45} 1-0

[Event "Romanian Team Rapid Women 2022"]
[Site "Sebes"]
[Date "2022.12.03"]
[Round "6.5"]
[White "Chicarosie, Ioana-Bianca"]
[Black "Ionescu, Irina"]
[Result "0-1"]
[ECO "D11"]
[WhiteElo "1815"]
[BlackElo "2119"]
[Annotator "TA"]
[PlyCount "88"]
[EventDate "2022.12.03"]
[EventType "rapid"]
[EventCountry "ROU"]
[SourceTitle "playchess.com"]
[Source "ChessBase"]
[SourceQuality "1"]
[TimeControl "900+10"]

{[%evp 11,88,15,22,14,11,-19,-20,-33,-29,-50,-48,-43,-37,-39,-35,-38,-17,-27,-18,-37,0,0,0,0,-10,-14,-15,-45,-18,-21,-18,-20,-3,-6,16,-50,-45,-65,-57,-66,0,-6,-7,-3,0,-37,0,0,0,-30,-8,-17,-18,-640,-639,-737,-749,-739,-680,-685,-621,-818,-817,-788,-776,-910,-807,-807,-802,-891,-877,-1410,-1296,-29980,-29981,-29980,-29981,-29982,-29983]} 1. d4 {[%emt 0:00:03]} d5 {[%emt 0:00:04]} 2. Nf3 {[%emt 0:00:05]} Nf6 {[%emt 0:00:07]} 3. g3 {[%emt 0:00:01]} c6 {[%emt 0:00:06]} 4. Bg2 {[%emt 0:00:01]} Bg4 {[%emt 0:00:08]} 5. O-O {[%emt 0:00:11]} e6 {[%emt 0:00:05]} 6. c4 {[%emt 0:01:05]} Be7 {[%emt 0:00:39]} 7. Qb3 {[%emt 0:01:03] D11: Slav Defence: 3 Nf3 sidelines and 3...Nf6 4 e3 Bg4.} Qb6 {[%emt 0:00:40]} 8. Qxb6 {[%emt 0:02:36]} axb6 {[%emt 0:00:03][%cal Ba7b6,Bb6b5][%mdl 32]} 9. cxd5 {[%emt 0:00:05] The position is equal.} exd5 {[%emt 0:00:13]} 10. Bf4 {[%emt 0:00:45]} O-O {[%emt 0:00:25]} 11. Nc3 {[%emt 0:00:06] [#]} b5 $146 {[%emt 0:00:04]} ({Predecessor:} 11... Nbd7 12. Ne5 Bb4 13. Nxg4 Nxg4 14. Bf3 Ngf6 15. h4 h5 16. a3 Be7 17. Rfe1 Rfe8 18. e4 Nxe4 19. Nxe4 dxe4 20. Bxh5 {½-½ (60) Prazmowski,W (1733)-Zlotkowski,W Warsaw 2008}) 12. a3 {[%emt 0:00:16]} Nbd7 {[%emt 0:00:18]} 13. h3 {[%emt 0:00:34]} Bxf3 {[%emt 0:01:52]} 14. Bxf3 {[%emt 0:00:05]} Nb6 {[%emt 0:00:04]} 15. Ra2 {[%emt 0:02:35]} b4 {[%emt 0:01:35]} 16. axb4 {[%emt 0:00:11]} Rxa2 {[%emt 0:00:04]} 17. Nxa2 {[%emt 0:00:01][%cal Ob4b5]} Ra8 {[%emt 0:00:02] Against b5} 18. Nc3 {[%emt 0:00:18]} Bxb4 {[%emt 0:00:07]} 19. Rc1 {[%emt 0:00:36]} h6 {[%emt 0:00:46]} 20. h4 {[%emt 0:02:05]} Nc4 {[%emt 0:02:51]} 21. Rb1 {[%emt 0:01:42]} b5 {[%emt 0:01:05]} 22. g4 {[%emt 0:00:22]} Nd7 {[%emt 0:01:11]} 23. g5 {[%emt 0:00:25]} (23. e4 $11) 23... hxg5 $15 {[%emt 0:00:04]} 24. hxg5 {[%emt 0:00:01]} Nf8 $1 {[%emt 0:00:03] Black is more active.} 25. Bg4 {[%emt 0:01:39]} g6 {[%emt 0:01:33]} (25... Ne6 $15 26. Bxe6 fxe6) 26. Kg2 {[%emt 0:00:26]} Ne6 {[%emt 0:00:54]} 27. Bxe6 {[%emt 0:00:12]} fxe6 {[%emt 0:00:01]} 28. f3 {[%emt 0:00:22]} Bd6 {[%emt 0:01:12]} 29. Bxd6 {[%emt 0:00:29]} Nxd6 $11 {[%emt 0:00:02][%mdl 4096] Endgame KRN-KRN} 30. e4 {[%emt 0:00:28] Inhibits Nf5.} Kg7 {[%emt 0:00:11]} (30... b4 $5 {[%cal Rb4c3]} 31. Ne2 dxe4 $15) 31. Kg3 {[%emt 0:00:19]} b4 {[%emt 0:00:09]} 32. e5 $2 {[%emt 0:00:23][%mdl 8192] Loses the game.} (32. Ne2 $11) 32... Nf5+ $19 {[%emt 0:00:05]} 33. Kg4 {[%emt 0:00:10]} bxc3 {[%emt 0:00:13]} 34. bxc3 {[%emt 0:00:02] KRN-KR} Ra3 {[%emt 0:00:16]} 35. Rc1 {[%emt 0:00:15]} Kf7 {[%emt 0:00:08]} 36. f4 {[%emt 0:00:08]} Ke7 {[%emt 0:00:19][%cal Oc6c5]} 37. Kf3 {[%emt 0:00:27]} Nxd4+ {[%emt 0:03:41]} 38. Ke3 Nb5 {[%emt 0:00:00]} 39. Kd2 {[%emt 0:00:10]} Ra4 {[%emt 0:00:00]} 40. Ke3 {[%emt 0:00:16] [#]} Nxc3 $1 {[%emt 0:00:00] aiming for ...Ra3.} 41. Kd3 {[%emt 0:00:19] [#]} (41. Rh1 d4+) 41... Rxf4 $1 {[%emt 0:00:00]} 42. Rxc3 {[%emt 0:00:10]} (42. Kc2 Ne4) 42... Rf3+ {[%emt 0:00:00] Black mates.} 43. Kd2 {[%emt 0:00:02]} Rxc3 {[%emt 0:00:00]} 44. Kxc3 {[%emt 0:00:01]} c5 {[%emt 0:00:00] Weighted Error Value: White=0.79/Black=0.10 (very precise)} 0-1